[Event "3rd Memorial Warakomska 2019"]
[Site "Suwalki"]
[Date "2019.08.08"]
[Round "5.40"]
[White "Szostko, Jakub"]
[Black "Advait, Bagri"]
[Result "0-1"]
[ECO "C91"]
[WhiteElo "2245"]
[BlackElo "1968"]
[Annotator "ChessBase"]
[PlyCount "178"]
[EventDate "2019.08.05"]
[EventType "swiss"]
[EventCountry "POL"]
[SourceTitle "playchess.com"]
[Source "ChessBase"]
[SourceQuality "1"]
[TimeControl "40/5400+30:1800+30"]

1. e4 {[%emt 0:00:00]} e5 {[%emt 0:00:00]} 2. Nf3 {[%emt 0:00:00]} Nc6 {[%emt 0:00:00]} 3. Bb5 {[%emt 0:00:00]} a6 {[%emt 0:00:00]} 4. Ba4 {[%emt 0:00:00]} Nf6 {[%emt 0:00:06]} 5. O-O {[%emt 0:00:00]} Be7 {[%emt 0:00:10]} 6. Re1 {[%emt 0:00:00]} b5 {[%emt 0:00:09]} 7. Bb3 {[%emt 0:00:02]} d6 {[%emt 0:00:14]} 8. c3 {[%emt 0:00:06]} O-O {[%emt 0:00:11]} 9. d4 {[%emt 0:00:07]} Bg4 {[%emt 0:03:01]} 10. d5 {[%emt 0:00:10]} Na5 {[%emt 0:00:10]} 11. Bc2 {[%emt 0:00:06]} c6 {[%emt 0:00:50]} 12. h3 {[%emt 0:00:18]} Bc8 {[%emt 0:00:19]} 13. dxc6 {[%emt 0:00:23]} Qc7 {[%emt 0:04:10]} 14. Nbd2 {[%emt 0:01:13]} Nxc6 {[%emt 0:07:50]} 15. Nf1 {[%emt 0:01:08]} h6 {[%emt 0:04:38]} 16. Ng3 {[%emt 0:02:45]} Rd8 {[%emt 0:02:08]} 17. Qe2 {[%emt 0:05:19]} Bf8 {[%emt 0:08:18]} 18. a4 {[%emt 0:05:38]} b4 {[%emt 0:07:01]} 19. c4 {[%emt 0:03:42]} Be6 {[%emt 0:03:55]} 20. b3 {[%emt 0:02:01]} Nd7 {[%emt 0:02:56]} 21. Nf1 {[%emt 0:05:06]} Nc5 {[%emt 0:01:59]} 22. Ne3 {[%emt 0:05:50]} Nd4 {[%emt 0:06:27]} 23. Qd1 {[%emt 0:01:46]} g6 {[%emt 0:01:58]} 24. Bb2 {[%emt 0:06:24]} Nxf3+ {[%emt 0:06:02]} 25. Qxf3 {[%emt 0:00:33]} a5 {[%emt 0:04:08]} 26. Qg3 {[%emt 0:09:52]} Bg7 {[%emt 0:01:12]} 27. Rad1 {[%emt 0:02:25]} Qe7 {[%emt 0:03:24]} 28. Bc1 {[%emt 0:04:26]} Kh7 {[%emt 0:03:32]} 29. Nf5 {[%emt 0:09:13]} Qf8 {[%emt 0:13:32]} 30. Qh4 {[%emt 0:05:35]} f6 {[%emt 0:01:17]} 31. Ne3 {[%emt 0:02:11]} Ra7 {[%emt 0:03:46]} 32. Qg3 {[%emt 0:04:51]} Re7 {[%emt 0:03:04]} 33. Qf3 Kh8 {[%emt 0:01:50]} 34. Nf1 {[%emt 0:07:42]} Bf7 {[%emt 0:02:27]} 35. Be3 {[%emt 0:00:51]} Qe8 {[%emt 0:01:00]} 36. Rxd6 {[%emt 0:01:53]} Ne6 {[%emt 0:02:09]} 37. Rxd8 {[%emt 0:01:55]} Qxd8 {[%emt 0:00:09]} 38. Rd1 {[%emt 0:00:39]} Rd7 {[%emt 0:00:21]} 39. Rxd7 {[%emt 0:02:46]} Qxd7 {[%emt 0:00:07]} 40. Qd1 {[%emt 0:00:00]} Nd4 {[%emt 0:00:00]} 41. Bxd4 {[%emt 0:03:30]} exd4 {[%emt 0:05:34]} 42. Ne3 {[%emt 0:02:03]} Qa7 {[%emt 0:01:13]} 43. Nd5 {[%emt 0:00:51]} Bxd5 {[%emt 0:02:09]} 44. exd5 {[%emt 0:00:32]} f5 {[%emt 0:01:47]} 45. Qe2 {[%emt 0:00:47]} Bf6 {[%emt 0:04:47]} 46. Qe8+ {[%emt 0:02:22]} Kg7 {[%emt 0:00:25]} 47. d6 {[%emt 0:23:10]} d3 {[%emt 0:01:54]} 48. Bxd3 {[%emt 0:00:14]} Qd4 {[%emt 0:00:09]} 49. Qd7+ {[%emt 0:01:14]} Kh8 {[%emt 0:00:16]} 50. Qe6 {[%emt 0:01:22]} Kg7 {[%emt 0:07:27]} 51. Qd7+ {[%emt 0:02:47]} Kh8 {[%emt 0:00:09]} 52. Qe6 {[%emt 0:01:58]} Kg7 {[%emt 0:00:09]} 53. Qd5 {[%emt 0:02:38]} Qxd5 {[%emt 0:00:14]} 54. cxd5 {[%emt 0:00:01]} Be5 {[%emt 0:00:20]} 55. d7 {[%emt 0:00:06]} Bc7 {[%emt 0:00:05]} 56. Kf1 {[%emt 0:01:04]} Kf6 {[%emt 0:01:12]} 57. Bb5 Ke5 {[%emt 0:00:59]} 58. Bc6 {[%emt 0:01:29]} Kd4 {[%emt 0:00:29]} 59. Ke2 g5 {[%emt 0:05:14]} 60. Kf3 {[%emt 0:01:17]} Bd8 {[%emt 0:00:29]} 61. d6 {[%emt 0:03:06]} Kc5 {[%emt 0:00:52]} 62. Bb5 {[%emt 0:00:03]} Kd4 {[%emt 0:02:14]} 63. Bc4 {[%emt 0:00:40]} Bb6 {[%emt 0:01:07]} 64. Be2 {[%emt 0:01:02]} Kc3 {[%emt 0:00:12]} 65. Bc4 {[%emt 0:01:24]} Kd4 {[%emt 0:00:11]} 66. Bg8 {[%emt 0:00:13]} Bd8 {[%emt 0:00:55]} 67. Bc4 {[%emt 0:01:12]} Bb6 {[%emt 0:00:08]} 68. h4 {[%emt 0:00:44]} Bd8 {[%emt 0:00:31]} 69. h5 {[%emt 0:00:06]} Bb6 {[%emt 0:00:38]} 70. Bg8 {[%emt 0:00:21]} Bd8 {[%emt 0:01:01]} 71. Bc4 {[%emt 0:00:15]} Bb6 {[%emt 0:00:10]} 72. Bg8 {[%emt 0:01:23]} Bd8 {[%emt 0:00:13]} 73. Bh7 {[%emt 0:00:36]} Kc3 {[%emt 0:00:08]} 74. Bg8 {[%emt 0:00:47]} Kd4 {[%emt 0:00:06]} 75. Bh7 {[%emt 0:00:02]} Kc3 {[%emt 0:00:02]} 76. Bxf5 {[%emt 0:01:06]} Kxb3 {[%emt 0:00:09]} 77. Ke4 {[%emt 0:00:01]} Kxa4 {[%emt 0:00:33]} 78. Kd5 {[%emt 0:00:11]} b3 {[%emt 0:02:36]} 79. Kc5 {[%emt 0:01:24]} Ka3 {[%emt 0:00:34]} 80. Kb5 {[%emt 0:00:30]} a4 {[%emt 0:00:21]} 81. g3 {[%emt 0:00:15]} b2 {[%emt 0:00:49]} 82. Bc2 {[%emt 0:00:15]} g4 {[%emt 0:01:07]} 83. Kc6 {[%emt 0:00:49]} Kb4 {[%emt 0:00:46]} 84. Kb7 {[%emt 0:00:07]} a3 {[%emt 0:00:07]} 85. Bb1 {[%emt 0:00:01]} Kb3 {[%emt 0:00:11]} 86. Kc8 {[%emt 0:00:00]} Ba5 {[%emt 0:00:56]} 87. d8=Q {[%emt 0:00:12]} Bxd8 {[%emt 0:00:07]} 88. Kxd8 {[%emt 0:00:01]} a2 {[%emt 0:00:09]} 89. Bxa2+ Kxa2 {[%emt 0:00:06]} 0-1

[Event "3rd Memorial Warakomska 2019"]
[Site "Suwalki"]
[Date "2019.08.08"]
[Round "5.41"]
[White "Mulet, Piotr"]
[Black "Bommini Mounika Akshaya"]
[Result "1-0"]
[ECO "C49"]
[WhiteElo "2244"]
[BlackElo "2063"]
[Annotator "NA"]
[PlyCount "93"]
[EventDate "2019.08.05"]
[EventType "swiss"]
[EventCountry "POL"]
[SourceTitle "playchess.com"]
[Source "ChessBase"]
[SourceQuality "1"]
[TimeControl "40/5400+30:1800+30"]

1. e4 {[%emt 0:00:00]} e5 {[%emt 0:02:10]} 2. Nf3 {[%emt 0:00:00]} Nc6 {[%emt 0:00:08]} 3. Nc3 {[%emt 0:00:00]} Nf6 {[%emt 0:00:05]} 4. Bb5 {[%emt 0:01:36]} Bb4 {[%emt 0:00:16]} 5. O-O {[%emt 0:00:14]} O-O {[%emt 0:00:06]} 6. d3 {[%emt 0:00:15]} Bxc3 {[%emt 0:00:06]} 7. bxc3 {[%emt 0:00:07]} d6 {[%emt 0:00:18]} 8. Re1 {[%emt 0:00:31]} a6 {[%emt 0:06:54]} 9. Bxc6 {[%emt 0:01:23]} bxc6 {[%emt 0:00:14]} 10. d4 {[%emt 0:02:00]} Qe7 {[%emt 0:01:15]} 11. Ba3 {[%emt 0:09:00]} Nd7 {[%emt 0:01:50]} 12. Qd3 {[%emt 0:06:04]} Re8 {[%emt 0:21:25]} 13. Rab1 {[%emt 0:20:37]} Qd8 {[%emt 0:07:48]} 14. Nd2 {[%emt 0:13:39]} a5 {[%emt 0:08:37]} 15. Qg3 {[%emt 0:00:06]} Qf6 {[%emt 0:13:04]} 16. dxe5 {[%emt 0:04:39]} Rxe5 {[%emt 0:02:56]} 17. c4 {[%emt 0:02:38]} Rg5 {[%emt 0:10:04]} 18. Qe3 {[%emt 0:00:11]} h5 {[%emt 0:01:49]} 19. f4 {[%emt 0:02:07]} Rg4 {[%emt 0:03:22]} 20. h3 {[%emt 0:03:08]} Rg6 {[%emt 0:01:56]} 21. Nf3 {[%emt 0:02:49]} Nb6 {[%emt 0:03:07]} 22. Bb2 {[%emt 0:06:32]} Nxc4 {[%emt 0:05:13]} 23. Bxf6 {[%emt 0:00:06]} Nxe3 {[%emt 0:00:05]} 24. Bg5 {[%emt 0:00:05]} Nxc2 {[%emt 0:06:29]} 25. Rec1 {[%emt 0:00:51]} Nb4 {[%emt 0:00:34]} 26. f5 {[%emt 0:01:18]} Rxg5 {[%emt 0:00:22]} 27. Nxg5 {[%emt 0:00:07]} c5 {[%emt 0:00:08]} 28. a3 {[%emt 0:01:14]} Nc6 {[%emt 0:00:15]} 29. Nf3 {[%emt 0:00:46]} Ba6 {[%emt 0:00:11]} 30. e5 {[%emt 0:00:37]} Bd3 {[%emt 0:01:27]} 31. Rb7 {[%emt 0:00:06]} Rc8 {[%emt 0:01:02]} 32. g4 {[%emt 0:01:25]} Be4 {[%emt 0:00:37]} 33. exd6 {[%emt 0:00:32]} cxd6 {[%emt 0:01:19]} 34. Ng5 {[%emt 0:00:27]} Nd4 {[%emt 0:01:05]} 35. Nxe4 {[%emt 0:00:56]} Ne2+ {[%emt 0:00:10]} 36. Kg2 {[%emt 0:00:24]} Nxc1 {[%emt 0:00:05]} 37. Nxd6 {[%emt 0:00:03]} Rd8 {[%emt 0:00:55]} 38. Nxf7 {[%emt 0:00:16]} Rd2+ {[%emt 0:00:07]} 39. Kg3 {[%emt 0:00:47]} Rd3+ {[%emt 0:00:34]} 40. Kh4 {[%emt 0:00:00]} hxg4 {[%emt 0:00:00]} 41. hxg4 {[%emt 0:00:39]} Rxa3 {[%emt 0:04:57]} 42. Ng5 {[%emt 0:01:36]} Rb3 {[%emt 0:02:20]} 43. Ra7 {[%emt 0:00:08]} Rb8 {[%emt 0:01:58]} 44. Ne6 {[%emt 0:00:11]} Nd3 {[%emt 0:02:04]} 45. Rxg7+ {[%emt 0:00:48]} Kh8 {[%emt 0:00:14]} 46. f6 {[%emt 0:01:55]} Rc8 {[%emt 0:02:04]} 47. g5 {[%emt 0:04:08]} 1-0

[Event "3rd Memorial Warakomska 2019"]
[Site "Suwalki"]
[Date "2019.08.08"]
[Round "5.42"]
[White "Kumala, Aleksander"]
[Black "Czarniecka, Aleksandra"]
[Result "1-0"]
[ECO "C41"]
[WhiteElo "2184"]
[BlackElo "2042"]
[Annotator "NA"]
[PlyCount "75"]
[EventDate "2019.08.05"]
[EventType "swiss"]
[EventCountry "POL"]
[SourceTitle "playchess.com"]
[Source "ChessBase"]
[SourceQuality "1"]
[TimeControl "40/5400+30:1800+30"]

1. d4 {[%emt 0:00:00]} d6 {[%emt 0:00:00]} 2. e4 {[%emt 0:00:00]} Nf6 {[%emt 0:00:00]} 3. Nc3 {[%emt 0:00:00]} e5 {[%emt 0:00:18]} 4. Nf3 {[%emt 0:00:00]} Nbd7 {[%emt 0:01:30]} 5. Rg1 {[%emt 0:00:00]} g6 {[%emt 0:11:26]} 6. g4 {[%emt 0:00:04]} Bg7 {[%emt 0:05:38]} 7. g5 {[%emt 0:02:31]} Ng8 {[%emt 0:04:51]} 8. Be3 {[%emt 0:01:24]} Ne7 {[%emt 0:00:50]} 9. Qd2 {[%emt 0:01:35]} exd4 {[%emt 0:04:24]} 10. Nxd4 {[%emt 0:01:19]} Ne5 {[%emt 0:02:03]} 11. Be2 {[%emt 0:04:00]} N5c6 {[%emt 0:07:43]} 12. O-O-O {[%emt 0:02:13]} a6 {[%emt 0:14:11]} 13. h4 {[%emt 0:04:56]} Rg8 {[%emt 0:05:08]} 14. f4 {[%emt 0:03:03]} Nxd4 {[%emt 0:04:14]} 15. Bxd4 {[%emt 0:04:17]} Bxd4 {[%emt 0:00:05]} 16. Qxd4 {[%emt 0:00:08]} Be6 {[%emt 0:01:15]} 17. Rge1 {[%emt 0:08:04]} Qd7 {[%emt 0:05:13]} 18. Nd5 {[%emt 0:04:54]} Bxd5 {[%emt 0:07:39]} 19. exd5 {[%emt 0:00:08]} Kf8 {[%emt 0:00:53]} 20. Qf6 {[%emt 0:15:01]} Qf5 {[%emt 0:03:27]} 21. Bg4 {[%emt 0:00:05]} Qxf6 {[%emt 0:04:18]} 22. gxf6 {[%emt 0:00:20]} Nf5 {[%emt 0:01:28]} 23. Bxf5 {[%emt 0:08:36]} gxf5 {[%emt 0:00:06]} 24. h5 {[%emt 0:00:03]} Re8 {[%emt 0:09:13]} 25. Rxe8+ {[%emt 0:03:48]} Kxe8 {[%emt 0:00:05]} 26. Re1+ {[%emt 0:00:05]} Kd8 {[%emt 0:00:02]} 27. Re7 {[%emt 0:00:05]} Rf8 {[%emt 0:00:18]} 28. Kd2 {[%emt 0:02:38]} h6 {[%emt 0:00:31]} 29. Kd3 {[%emt 0:00:12]} Kc8 {[%emt 0:00:35]} 30. a4 {[%emt 0:01:38]} b5 {[%emt 0:04:20]} 31. a5 {[%emt 0:01:23]} Kb8 {[%emt 0:00:47]} 32. c4 {[%emt 0:00:21]} bxc4+ {[%emt 0:00:32]} 33. Kxc4 {[%emt 0:00:07]} Kc8 {[%emt 0:01:16]} 34. b4 {[%emt 0:00:06]} Rg8 {[%emt 0:01:11]} 35. Rxf7 {[%emt 0:00:08]} Rg4 {[%emt 0:00:15]} 36. Rg7 {[%emt 0:02:14]} Rxf4+ {[%emt 0:00:20]} 37. Kb3 {[%emt 0:00:05]} Kd8 {[%emt 0:01:10]} 38. Rg8+ {[%emt 0:00:06]} 1-0

[Event "3rd Memorial Warakomska 2019"]
[Site "Suwalki"]
[Date "2019.08.08"]
[Round "5.43"]
[White "Wolanski, Michal"]
[Black "Praczukowski, Stanislaw"]
[Result "1/2-1/2"]
[ECO "A36"]
[WhiteElo "2007"]
[BlackElo "2166"]
[Annotator "NA"]
[PlyCount "135"]
[EventDate "2019.08.05"]
[EventType "swiss"]
[EventCountry "POL"]
[SourceTitle "playchess.com"]
[Source "ChessBase"]
[SourceQuality "1"]
[TimeControl "40/5400+30:1800+30"]

1. c4 {[%emt 0:00:00]} g6 {[%emt 0:00:00]} 2. g3 {[%emt 0:00:00]} Bg7 {[%emt 0:00:00]} 3. Bg2 {[%emt 0:00:00]} c5 {[%emt 0:00:07]} 4. Nc3 {[%emt 0:00:00]} Nc6 {[%emt 0:00:15]} 5. a3 {[%emt 0:00:01]} e6 {[%emt 0:03:01]} 6. b4 {[%emt 0:00:16]} d6 {[%emt 0:02:46]} 7. Rb1 {[%emt 0:00:47]} Nge7 {[%emt 0:00:33]} 8. e3 {[%emt 0:00:41]} O-O {[%emt 0:02:50]} 9. Nge2 {[%emt 0:00:19]} e5 {[%emt 0:10:56]} 10. O-O {[%emt 0:02:16]} Rb8 {[%emt 0:04:52]} 11. Qc2 {[%emt 0:32:23]} Be6 {[%emt 0:06:21]} 12. Nd5 {[%emt 0:01:08]} Qd7 {[%emt 0:01:05]} 13. Nec3 {[%emt 0:13:40]} b6 {[%emt 0:22:44]} 14. b5 {[%emt 0:05:45]} Nd8 {[%emt 0:02:02]} 15. Nxe7+ {[%emt 0:04:38]} Qxe7 {[%emt 0:00:07]} 16. d3 {[%emt 0:00:26]} Qd7 {[%emt 0:01:48]} 17. Nd5 {[%emt 0:04:14]} Bh3 {[%emt 0:02:19]} 18. Bd2 {[%emt 0:02:08]} Bxg2 {[%emt 0:01:49]} 19. Kxg2 {[%emt 0:00:07]} Ne6 {[%emt 0:00:28]} 20. a4 {[%emt 0:01:05]} Nc7 {[%emt 0:03:40]} 21. Nxc7 {[%emt 0:00:21]} Qxc7 {[%emt 0:00:06]} 22. e4 {[%emt 0:00:10]} f5 {[%emt 0:01:13]} 23. f3 {[%emt 0:01:25]} Qe7 {[%emt 0:09:18]} 24. a5 {[%emt 0:01:30]} g5 {[%emt 0:01:50]} 25. axb6 {[%emt 0:02:55]} axb6 {[%emt 0:00:15]} 26. g4 {[%emt 0:04:20]} fxg4 {[%emt 0:00:54]} 27. fxg4 {[%emt 0:01:11]} Rxf1 {[%emt 0:05:05]} 28. Rxf1 {[%emt 0:00:36]} Rf8 {[%emt 0:00:25]} 29. Rxf8+ {[%emt 0:00:40]} Kxf8 {[%emt 0:00:17]} 30. Qa4 {[%emt 0:01:40]} Bf6 {[%emt 0:01:21]} 31. Qa8+ {[%emt 0:04:56]} Kg7 {[%emt 0:02:04]} 32. Qc6 {[%emt 0:07:07]} Qa7 {[%emt 0:03:11]} 33. Kf2 {[%emt 0:01:09]} Be7 {[%emt 0:02:45]} 34. Qe8 {[%emt 0:01:25]} h6 {[%emt 0:01:18]} 35. Qc8 {[%emt 0:01:31]} Qa1 {[%emt 0:01:48]} 36. Qb7 {[%emt 0:00:44]} Kf7 {[%emt 0:01:01]} 37. Qxb6 {[%emt 0:00:48]} Qh1 {[%emt 0:00:34]} 38. Ke2 {[%emt 0:02:16]} Qxh2+ {[%emt 0:00:12]} 39. Kd1 {[%emt 0:00:08]} h5 {[%emt 0:00:40]} 40. Qc7 {[%emt 0:00:00]} Qh4 {[%emt 0:00:00]} 41. b6 {[%emt 0:05:14]} hxg4 {[%emt 0:07:35]} 42. b7 {[%emt 0:03:42]} g3 {[%emt 0:00:05]} 43. b8=Q {[%emt 0:01:58]} g2 {[%emt 0:00:06]} 44. Be3 {[%emt 0:05:39]} Qh5+ {[%emt 0:02:47]} 45. Kd2 {[%emt 0:01:30]} Qh2 {[%emt 0:00:25]} 46. Kc3 {[%emt 0:05:55]} Qh1 {[%emt 0:00:19]} 47. Qb2 {[%emt 0:07:14]} Qe1+ {[%emt 0:00:37]} 48. Qd2 {[%emt 0:00:29]} Qa1+ {[%emt 0:00:13]} 49. Kb3 {[%emt 0:00:22]} Qb1+ {[%emt 0:00:39]} 50. Ka4 {[%emt 0:00:55]} Ke8 {[%emt 0:00:40]} 51. Qc8+ {[%emt 0:01:03]} Kf7 {[%emt 0:00:40]} 52. Qf5+ {[%emt 0:01:35]} Kg7 {[%emt 0:00:22]} 53. Qff2 {[%emt 0:00:43]} Qa1+ {[%emt 0:01:13]} 54. Kb5 {[%emt 0:01:02]} Qb1+ {[%emt 0:00:28]} 55. Qb2 {[%emt 0:00:22]} g1=Q {[%emt 0:00:18]} 56. Qxg1 {[%emt 0:01:43]} Qxb2+ {[%emt 0:00:19]} 57. Kc6 {[%emt 0:00:22]} Qa3 {[%emt 0:09:02]} 58. Kd7 Kf7 59. Qf1+ {[%emt 0:02:11]} Bf6 {[%emt 0:03:32]} 60. Bxg5 {[%emt 0:00:43]} Qa7+ {[%emt 0:02:06]} 61. Kxd6 {[%emt 0:00:03]} Qa6+ {[%emt 0:01:28]} 62. Kxc5 {[%emt 0:00:25]} Qa5+ {[%emt 0:00:05]} 63. Kd6 {[%emt 0:00:51]} Qa6+ {[%emt 0:00:15]} 64. Kd5 {[%emt 0:00:33]} Qa8+ {[%emt 0:00:10]} 65. Kc5 {[%emt 0:00:27]} Qa5+ {[%emt 0:00:06]} 66. Kd6 {[%emt 0:00:21]} Qa6+ {[%emt 0:00:05]} 67. Kd5 {[%emt 0:00:09]} Qa8+ {[%emt 0:00:05]} 68. Kc5 {[%emt 0:00:11]} 1/2-1/2

[Event "3rd Memorial Warakomska 2019"]
[Site "Suwalki"]
[Date "2019.08.08"]
[Round "5.44"]
[White "Chan, Kim Yew"]
[Black "Leskiewicz, Ignacy"]
[Result "1-0"]
[ECO "A01"]
[WhiteElo "2276"]
[BlackElo "2120"]
[Annotator "ChessBase"]
[PlyCount "143"]
[EventDate "2019.08.05"]
[EventType "swiss"]
[EventCountry "POL"]
[SourceTitle "playchess.com"]
[Source "ChessBase"]
[SourceQuality "1"]
[TimeControl "40/5400+30:1800+30"]

1. b3 {[%emt 0:00:00]} e5 {[%emt 0:00:00]} 2. Bb2 {[%emt 0:00:00]} Nc6 {[%emt 0:00:00]} 3. e3 {[%emt 0:00:00]} g6 {[%emt 0:01:46]} 4. Nf3 {[%emt 0:01:01]} Bg7 {[%emt 0:00:08]} 5. c4 {[%emt 0:01:20]} Nge7 {[%emt 0:00:45]} 6. Be2 {[%emt 0:02:20]} O-O {[%emt 0:03:57]} 7. d4 {[%emt 0:02:45]} d6 {[%emt 0:12:14]} 8. dxe5 {[%emt 0:09:20]} Nxe5 {[%emt 0:04:51]} 9. Nc3 {[%emt 0:00:20]} Bd7 {[%emt 0:20:30]} 10. O-O {[%emt 0:01:43]} Nf5 {[%emt 0:08:28]} 11. Qc2 {[%emt 0:11:13]} Re8 {[%emt 0:01:55]} 12. Rfd1 {[%emt 0:01:50]} Bc6 {[%emt 0:12:21]} 13. Nd5 {[%emt 0:01:26]} Bxd5 {[%emt 0:05:51]} 14. Rxd5 {[%emt 0:03:33]} Nxf3+ {[%emt 0:05:51]} 15. Bxf3 {[%emt 0:00:06]} c6 {[%emt 0:01:14]} 16. Rd2 {[%emt 0:01:53]} Bxb2 {[%emt 0:02:41]} 17. Qxb2 {[%emt 0:00:05]} Qe7 {[%emt 0:02:04]} 18. Rad1 {[%emt 0:06:05]} Rad8 {[%emt 0:01:26]} 19. g3 {[%emt 0:01:16]} c5 {[%emt 0:01:22]} 20. Rd5 {[%emt 0:01:33]} h5 {[%emt 0:03:22]} 21. R1d3 {[%emt 0:03:54]} Qe6 {[%emt 0:02:11]} 22. Qd2 {[%emt 0:03:36]} Qf6 {[%emt 0:00:31]} 23. Qd1 {[%emt 0:01:53]} b6 {[%emt 0:00:59]} 24. Rd2 {[%emt 0:06:22]} Re6 {[%emt 0:02:05]} 25. Bg2 {[%emt 0:03:46]} Re5 {[%emt 0:03:39]} 26. R5d3 {[%emt 0:02:13]} Rde8 {[%emt 0:00:00]} 27. Bh3 {[%emt 0:01:47]} h4 {[%emt 0:02:10]} 28. Qf3 {[%emt 0:06:56]} hxg3 {[%emt 0:00:21]} 29. hxg3 {[%emt 0:00:12]} Kg7 {[%emt 0:00:26]} 30. Rd5 {[%emt 0:09:14]} Rxd5 {[%emt 0:01:08]} 31. Rxd5 {[%emt 0:00:55]} Re5 {[%emt 0:00:00]} 32. Rd1 {[%emt 0:03:13]} Qe6 {[%emt 0:00:57]} 33. Kg2 {[%emt 0:07:02]} a6 {[%emt 0:00:30]} 34. Qc6 {[%emt 0:01:17]} b5 {[%emt 0:00:32]} 35. cxb5 {[%emt 0:00:57]} axb5 {[%emt 0:00:01]} 36. Qxb5 {[%emt 0:01:22]} Qf6 {[%emt 0:00:39]} 37. Bxf5 {[%emt 0:01:47]} Qxf5 {[%emt 0:00:28]} 38. Qd3 {[%emt 0:02:19]} Qg4 {[%emt 0:00:44]} 39. Rh1 {[%emt 0:00:16]} d5 {[%emt 0:00:41]} 40. Rh4 {[%emt 0:00:00]} Qe6 {[%emt 0:00:00]} 41. a4 {[%emt 0:05:26]} Qc6 {[%emt 0:07:06]} 42. Kh2 {[%emt 0:02:09]} Rf5 {[%emt 0:03:16]} 43. Kg1 {[%emt 0:02:59]} Qf6 {[%emt 0:01:15]} 44. Qc2 {[%emt 0:07:24]} g5 {[%emt 0:13:31]} 45. Rh5 {[%emt 0:03:05]} c4 {[%emt 0:02:24]} 46. bxc4 {[%emt 0:03:06]} dxc4 {[%emt 0:00:01]} 47. Qxc4 {[%emt 0:00:41]} Qa1+ {[%emt 0:02:25]} 48. Kg2 {[%emt 0:01:07]} Qd1 {[%emt 0:00:02]} 49. Qd4+ {[%emt 0:01:55]} Qxd4 {[%emt 0:00:02]} 50. exd4 {[%emt 0:00:05]} Ra5 51. d5 {[%emt 0:06:44]} Kg6 {[%emt 0:03:36]} 52. Rh1 {[%emt 0:00:02]} Rxd5 {[%emt 0:00:53]} 53. Ra1 {[%emt 0:00:08]} Ra5 {[%emt 0:00:04]} 54. Kf3 {[%emt 0:00:46]} Kf5 {[%emt 0:00:01]} 55. Ra2 {[%emt 0:00:28]} f6 {[%emt 0:00:26]} 56. Ra3 {[%emt 0:00:38]} g4+ {[%emt 0:00:52]} 57. Ke3 {[%emt 0:00:07]} Ke5 {[%emt 0:00:10]} 58. Ra2 {[%emt 0:00:17]} Kf5 {[%emt 0:00:40]} 59. Kd4 {[%emt 0:00:10]} Kg5 {[%emt 0:00:16]} 60. Kc4 {[%emt 0:00:19]} f5 {[%emt 0:00:46]} 61. Kb4 {[%emt 0:00:02]} Rd5 {[%emt 0:01:09]} 62. a5 {[%emt 0:00:18]} f4 {[%emt 0:00:18]} 63. a6 {[%emt 0:01:12]} fxg3 {[%emt 0:00:17]} 64. fxg3 {[%emt 0:00:07]} Rd8 {[%emt 0:00:38]} 65. a7 {[%emt 0:00:24]} Ra8 {[%emt 0:00:03]} 66. Ra5+ {[%emt 0:00:08]} Kf6 {[%emt 0:00:05]} 67. Kb5 {[%emt 0:00:16]} Ke5 {[%emt 0:00:50]} 68. Ra4 {[%emt 0:00:16]} Kf5 {[%emt 0:01:19]} 69. Kb6 {[%emt 0:00:16]} Rg8 {[%emt 0:00:18]} 70. a8=Q {[%emt 0:00:19]} Rxa8 {[%emt 0:00:02]} 71. Rxa8 {[%emt 0:00:07]} Ke4 {[%emt 0:00:05]} 72. Rf8 {[%emt 0:00:05]} 1-0

[Event "3rd Memorial Warakomska 2019"]
[Site "Suwalki"]
[Date "2019.08.08"]
[Round "5.45"]
[White "Dmochowska, Agnieszka"]
[Black "Korbal, Arkadiusz"]
[Result "1/2-1/2"]
[ECO "B37"]
[WhiteElo "2126"]
[BlackElo "2178"]
[Annotator "NA"]
[PlyCount "114"]
[EventDate "2019.08.05"]
[EventType "swiss"]
[EventCountry "POL"]
[SourceTitle "playchess.com"]
[Source "ChessBase"]
[SourceQuality "1"]
[TimeControl "40/5400+30:1800+30"]

1. e4 {[%emt 0:00:00]} c5 {[%emt 0:00:00]} 2. Nf3 {[%emt 0:00:00]} Nc6 {[%emt 0:00:11]} 3. d4 {[%emt 0:00:01]} cxd4 {[%emt 0:00:12]} 4. Nxd4 {[%emt 0:00:08]} g6 {[%emt 0:00:06]} 5. c4 {[%emt 0:00:17]} Bg7 {[%emt 0:00:23]} 6. Nc2 {[%emt 0:00:15]} d6 {[%emt 0:00:32]} 7. Be2 {[%emt 0:00:46]} Qb6 {[%emt 0:00:47]} 8. Nc3 {[%emt 0:01:02]} Bxc3+ {[%emt 0:00:17]} 9. bxc3 {[%emt 0:00:06]} Nf6 {[%emt 0:00:21]} 10. Be3 {[%emt 0:05:22]} Qa5 {[%emt 0:00:53]} 11. f3 {[%emt 0:02:16]} Qxc3+ {[%emt 0:03:03]} 12. Bd2 {[%emt 0:00:51]} Qe5 {[%emt 0:01:07]} 13. O-O {[%emt 0:00:18]} O-O {[%emt 0:03:14]} 14. Bd3 {[%emt 0:04:16]} Be6 {[%emt 0:06:28]} 15. f4 {[%emt 0:02:48]} Qc5+ {[%emt 0:06:16]} 16. Be3 {[%emt 0:01:19]} Qh5 {[%emt 0:01:08]} 17. Qd2 {[%emt 0:15:30]} Ng4 {[%emt 0:03:49]} 18. h3 {[%emt 0:00:10]} Nxe3 {[%emt 0:00:07]} 19. Nxe3 {[%emt 0:00:15]} Qc5 {[%emt 0:11:44]} 20. Kh1 {[%emt 0:01:27]} f6 {[%emt 0:11:27]} 21. Rab1 {[%emt 0:03:36]} b6 {[%emt 0:12:04]} 22. f5 {[%emt 0:17:20]} Bf7 {[%emt 0:00:36]} 23. Rb5 {[%emt 0:00:17]} Qa3 {[%emt 0:00:48]} 24. fxg6 {[%emt 0:00:13]} Bxg6 {[%emt 0:03:24]} 25. Nd5 {[%emt 0:08:04]} Rac8 {[%emt 0:10:26]} 26. Rf3 {[%emt 0:13:40]} Rf7 {[%emt 0:00:13]} 27. Be2 {[%emt 0:04:41]} Qa4 {[%emt 0:01:02]} 28. Nc3 {[%emt 0:02:47]} Qa6 {[%emt 0:00:49]} 29. c5 {[%emt 0:03:50]} Ne5 {[%emt 0:01:11]} 30. Re3 {[%emt 0:01:26]} bxc5 {[%emt 0:02:08]} 31. Rxc5 {[%emt 0:02:35]} Qb7 {[%emt 0:00:07]} 32. Rxc8+ {[%emt 0:00:24]} Qxc8 {[%emt 0:00:07]} 33. Nd5 {[%emt 0:00:34]} Kg7 {[%emt 0:04:19]} 34. Rc3 {[%emt 0:01:39]} Qb8 {[%emt 0:00:28]} 35. Rb3 {[%emt 0:00:22]} Qd8 {[%emt 0:01:03]} 36. Rg3 {[%emt 0:00:20]} Kh8 {[%emt 0:01:56]} 37. Qb4 {[%emt 0:01:20]} Rg7 {[%emt 0:03:15]} 38. Ra3 {[%emt 0:00:48]} f5 {[%emt 0:01:27]} 39. Nf4 {[%emt 0:03:43]} Qd7 {[%emt 0:05:11]} 40. Qb8+ {[%emt 0:00:00]} Rg8 {[%emt 0:00:00]} 41. Qxa7 {[%emt 0:07:39]} Qxa7 {[%emt 0:04:08]} 42. Rxa7 {[%emt 0:00:08]} fxe4 {[%emt 0:00:10]} 43. a4 {[%emt 0:03:15]} Nc6 {[%emt 0:03:33]} 44. Rc7 {[%emt 0:03:39]} Nd4 {[%emt 0:00:15]} 45. Bc4 {[%emt 0:04:25]} Ra8 {[%emt 0:04:38]} 46. Rxe7 {[%emt 0:01:21]} Rxa4 {[%emt 0:01:27]} 47. Nxg6+ {[%emt 0:01:05]} hxg6 {[%emt 0:00:06]} 48. Bd5 {[%emt 0:00:13]} Nf5 {[%emt 0:09:13]} 49. Re8+ {[%emt 0:00:47]} Kg7 {[%emt 0:00:34]} 50. g4 {[%emt 0:02:23]} Rd4 {[%emt 0:01:02]} 51. Bc6 {[%emt 0:03:27]} Ne3 {[%emt 0:04:44]} 52. Rxe4 {[%emt 0:00:57]} Rxe4 {[%emt 0:00:16]} 53. Bxe4 {[%emt 0:00:06]} g5 {[%emt 0:00:16]} 54. Kh2 {[%emt 0:00:17]} Kf6 {[%emt 0:01:05]} 55. Bd3 {[%emt 0:01:51]} Ke5 {[%emt 0:02:24]} 56. Kg3 {[%emt 0:00:08]} Kd4 {[%emt 0:00:07]} 57. Ba6 {[%emt 0:00:40]} Ke4 {[%emt 0:01:44]} 1/2-1/2